[Event "Czech Open-GM 2022"]
[Site "Pardubice"]
[Date "2022.07.24"]
[Round "3.34"]
[White "Lokander, Martin"]
[Black "Zielonka, Adam"]
[Result "1-0"]
[ECO "B46"]
[WhiteElo "2483"]
[BlackElo "1911"]
[Annotator "TA"]
[PlyCount "35"]
[EventDate "2022.07.22"]
[EventType "swiss"]
[EventCountry "CZE"]
[SourceTitle "playchess.com"]
[Source "ChessBase"]
[SourceQuality "1"]
[TimeControl "40/5400+30:1800+30"]

{[%evp 13,35,-2,4,-3,24,10,188,210,365,347,359,342,722,731,730,497,457,333,1216,1173,29988,29989,29997,29998]} 1. e4 {[%emt 0:00:10] Atalik,S} c5 {[%emt 0:00:05]} 2. Nf3 {[%emt 0:00:13]} e6 {[%emt 0:00:06]} 3. d4 {[%emt 0:00:31]} cxd4 {[%emt 0:00:09]} 4. Nxd4 {[%emt 0:00:04]} Nc6 {[%emt 0:00:05]} 5. Nc3 {[%emt 0:00:19]} a6 {[%emt 0:00:06]} 6. Nxc6 {[%emt 0:00:43]} bxc6 {[%emt 0:00:06]} 7. e5 {[%emt 0:00:05]} Qc7 {[%emt 0:00:04]} 8. Bf4 {[%emt 0:00:20] B46: Sicilian: Taimanov: 5 Nc3 a6.} f5 {[%emt 0:00:16] has lost popularity (8...Ne7).} 9. g4 {[%emt 0:00:53] Black must now prevent gxf5.} g5 $2 {[%emt 0:15:11] [#]} (9... Nh6 $11 {and Black has nothing to worry.}) 10. gxf5 $146 {[%emt 0:00:58] Qh5+ is the strong threat. White is clearly better.} ({Weaker is} 10. Bxg5 Qxe5+ 11. Qe2 Qxe2+ 12. Bxe2 Be7 $14) ({Predecessor:} 10. Bxg5 Qxe5+ 11. Qe2 Qg7 12. Bf4 fxg4 13. Be5 Nf6 14. Ne4 Be7 15. Rg1 h5 16. h3 {½-½ (40) Vonthron,H (2310)-Atalik,S (2619) Izmir 2006 EXT 2007 [Atalik,S]}) 10... gxf4 $2 {[%emt 0:00:43]} (10... h5) 11. Qh5+ {[%emt 0:00:03]} Kd8 {[%emt 0:01:49] [#]} 12. fxe6 $1 {[%emt 0:00:06]} dxe6 $2 {[%emt 0:08:38]} (12... Ne7) 13. O-O-O+ {[%emt 0:00:39]} Bd7 {[%emt 0:00:19]} 14. Qf7 {[%emt 0:03:01][%cal Rf7f8]} Ne7 {[%emt 0:03:19]} 15. Bc4 {[%emt 0:10:00]} Kc8 $2 {[%emt 0:22:10] [#]} (15... Nd5) 16. Rxd7 $1 {[%emt 0:02:26][%mdl 512]} Kxd7 {[%emt 0:01:09]} (16... Qxd7 17. Bxe6) 17. Qxe6+ {[%emt 0:01:18]} Ke8 {[%emt 0:00:09]} 18. Rd1 {[%emt 0:00:09] Black got outplayed after the opening.  Weighted Error Value: White=0.34/Black=1.01} 1-0

[Event "Czech Open-GM 2022"]
[Site "Pardubice"]
[Date "2022.07.24"]
[Round "3.35"]
[White "Johnson, Donald"]
[Black "Bronstein, Or"]
[Result "*"]
[ECO "B90"]
[WhiteElo "2186"]
[BlackElo "2476"]
[Annotator "TA"]
[PlyCount "39"]
[EventDate "2022.07.22"]
[EventType "swiss"]
[EventCountry "CZE"]
[SourceTitle "playchess.com"]
[Source "ChessBase"]
[SourceQuality "1"]
[TimeControl "40/5400+30:1800+30"]

{[%evp 12,22,18,0,6,6,24,21,29,30,21,12,25]} 1. e4 {[%emt 0:01:10]} c5 {[%emt 0:00:05]} 2. Nf3 {[%emt 0:00:08]} d6 {[%emt 0:00:30]} 3. d4 {[%emt 0:00:01]} cxd4 {[%emt 0:00:06]} 4. Nxd4 {[%emt 0:00:03]} Nf6 {[%emt 0:00:07]} 5. Nc3 {[%emt 0:00:10]} a6 {[%emt 0:00:06]} 6. h3 {[%emt 0:00:10]} e5 {[%emt 0:00:06]} 7. Nb3 {[%emt 0:00:18]} Be6 {[%emt 0:01:28] B90: Sicilian Najdorf: Unusual White 6th moves, 6 Be3 Ng4 and 6 Be3 e5.} 8. Be3 {[%emt 0:00:31]} Nbd7 {[%emt 0:01:05]} 9. g4 {[%emt 0:00:48]} h6 {[%emt 0:03:46]} 10. Qd2 {[%emt 0:07:19]} b5 {[%emt 0:01:36] 10...Rc8 gains popularity.} 11. O-O-O {[%emt 0:04:33]} Be7 {[%emt 0:01:16] [#] A rather calm draw.  Weighted Error Value: White=0.05 (flawless) /Black=0.08 (flawless)} {Predecessor:} 12. f4 $146 Rc8 13. f5 Bc4 14. Kb1 Qc7 15. a3 Nb6 16. Bxb6 Qxb6 17. Qe1 O-O 18. Nd5 Nxd5 19. exd5 Bxb3 20. cxb3 {0-1 (42) Andriasian,Z (2606)-Gabuzyan,H (2557) Yerevan 2021} *

[Event "Czech Open-GM 2022"]
[Site "Pardubice"]
[Date "2022.07.24"]
[Round "3.36"]
[White "Smith, Bryan"]
[Black "Shatil, Shir"]
[Result "1-0"]
[ECO "C05"]
[WhiteElo "2421"]
[BlackElo "2185"]
[Annotator "TA"]
[PlyCount "95"]
[EventDate "2022.07.22"]
[EventType "swiss"]
[EventCountry "CZE"]
[SourceTitle "playchess.com"]
[Source "ChessBase"]
[SourceQuality "1"]
[TimeControl "40/5400+30:1800+30"]

{[%evp 15,95,17,16,16,34,28,32,15,18,5,7,16,37,16,72,66,65,66,58,18,20,12,15,14,71,48,408,410,387,394,534,488,509,522,865,838,1503,1470,1322,653,577,48,572,550,586,298,758,268,626,580,577,569,540,493,29972,29973,29973,29974,29973,29975,29974,29976,29975,29975,29975,29976,29985,5517,5653,5681,1604,1310,29978,29979,29983,29984,29988,29987,29987,29982,29977,29978]} 1. e4 {[%emt 0:00:03]} e6 {[%emt 0:00:04]} 2. d4 {[%emt 0:00:08]} d5 {[%emt 0:00:03]} 3. Nd2 {[%emt 0:00:11]} Nf6 {[%emt 0:00:05]} 4. e5 {[%emt 0:00:04]} Nfd7 {[%emt 0:00:04]} 5. c3 {[%emt 0:00:21]} c5 {[%emt 0:00:03]} 6. Bd3 {[%emt 0:00:33]} Nc6 {[%emt 0:00:07]} 7. Ngf3 {[%emt 0:00:07]} Be7 {[%emt 0:00:06]} 8. O-O {[%emt 0:00:07]} a5 {[%emt 0:00:04]} 9. a4 $1 {[%emt 0:00:32][%mdl 4] is currently scoring better than 9.Re1. C06: French Tarrasch: 3...Nf6 4 e5 Nfd7 5 Bd3 main lines.} cxd4 {[%emt 0:00:06]} 10. cxd4 {[%emt 0:00:04]} Nb4 {[%emt 0:00:03]} 11. Bb1 {[%emt 0:00:13] White is slightly better.} b6 {[%emt 0:06:32][%cal Bb7b6,Bb6b5][%mdl 32]} 12. Re1 {[%emt 0:00:34]} Ba6 {[%emt 0:00:42]} 13. Nf1 {[%emt 0:01:59]} b5 {[%emt 0:14:14]} 14. Ng3 {[%emt 0:04:48][%cal Oh2h4]} h5 {[%emt 0:02:59] [#]} (14... bxa4 $11 15. Qxa4 O-O) 15. h4 $146 {[%emt 0:06:50]} ({Predecessor:} 15. Ne2 bxa4 16. Nf4 Nb6 17. Nd2 g6 18. b3 Rc8 19. bxa4 g5 20. Ne2 Qc7 21. Nb3 {0-1 (50) Karaoglan,D (2230)-Nikolovski,N (2454) Chess.com INT 2020}) 15... Bxh4 {[%emt 0:06:38]} 16. Nxh4 {[%emt 0:00:14]} Qxh4 {[%emt 0:00:04]} 17. axb5 {[%emt 0:03:30]} Bxb5 {[%emt 0:00:37]} 18. Be3 {[%emt 0:06:17]} Nb6 {[%emt 0:11:45]} 19. b3 {[%emt 0:05:31][%mdl 1024] White has compensation.} Qg4 {[%emt 0:08:18]} (19... Nd7 $11 {remains equal.}) 20. Qd2 {[%emt 0:02:36][%cal Oa1a5] Strongly threatening Rxa5!} (20. Qc1 $5 {[%cal Rc1c5]} Rc8 21. Qd2 $11) 20... O-O $2 {[%emt 0:16:10][%mdl 8192] [#] White leaves nothing to chance now.} (20... h4 $2 21. f3 $1 Qxg3 22. Bf2 $18) (20... Nc6 $1 $14) 21. f3 $1 $18 {[%emt 0:10:07]} Qh4 {[%emt 0:00:43]} (21... Qxg3 $2 22. Bf2 h4 23. Bxg3 hxg3 24. Rc1) 22. Kf2 {[%emt 0:01:45] Rh1 is the strong threat.} Qe7 {[%emt 0:03:28]} 23. Bg5 {[%emt 0:08:22]} f6 {[%emt 0:04:56]} 24. exf6 {[%emt 0:01:23]} gxf6 {[%emt 0:00:10]} 25. Nf5 {[%emt 0:05:29][%mdl 64] Deflection} Qd8 {[%emt 0:03:39] [#]} 26. Rxe6 $1 {[%emt 0:02:48][%cal Og5f6] White wants to mate with Bxf6!} fxg5 {[%emt 0:00:49]} 27. Rxb6 {[%emt 0:03:01]} Bc6 {[%emt 0:05:18] [#]} 28. Qc1 $2 $40 {[%emt 0:11:48][%mdl 128] Black needs to defend precisely.} Kh8 $2 {[%emt 0:11:06][%mdl 8192] [#]} ({Better is} 28... Rxf5 $1 $14 29. Bxf5 Qf6) 29. Rxb4 $1 {[%emt 0:02:39][%mdl 512]} Bd7 {[%emt 0:02:08]} 30. Nd6 {[%emt 0:07:04] Against Rc8} Qf6 $2 {[%emt 0:02:07] [#]} (30... Ra6) 31. Qc2 $2 {[%emt 0:01:58]} (31. Rb7 $1 Qxd4+ (31... Qxd6 32. Qxg5) 32. Kf1) 31... Bf5 {[%emt 0:00:40] [#]} (31... Qg7) 32. Nxf5 $1 {[%emt 0:00:41]} axb4 {[%emt 0:00:11]} 33. Rxa8 {[%emt 0:00:32]} Rxa8 {[%emt 0:00:08]} 34. Qc7 {[%emt 0:01:05]} Ra1 {[%emt 0:02:17]} (34... Re8 $18 35. Qh2 h4) 35. Qc8+ Kh7 36. Qd7+ {[%emt 0:00:59]} Kh8 {[%emt 0:00:24]} 37. Qe8+ {[%emt 0:00:15]} Kh7 {[%emt 0:00:11]} 38. Qxh5+ {[%emt 0:00:21]} Kg8 {[%emt 0:00:06]} 39. Qe8+ {[%emt 0:00:22]} Kh7 {[%emt 0:00:23]} 40. Bd3 {[%emt 0:06:41]} Ra2+ {[%emt 0:00:53]} 41. Kg3 {[%emt 0:30:27]} (41. Ke3 $142 Ra1 42. Ne7+ Kh6 43. Ng8+ Kg7 44. Nxf6 Re1+ 45. Be2 Kxf6 46. Qe5+ Kf7 47. Qxd5+ Ke7 48. Qb7+ Kf6 49. Qc6+ Kg7 50. Qd7+ Kf6 51. d5) 41... Rd2 {[%emt 0:03:26]} 42. Qe3 {[%emt 0:00:00]} Rb2 {[%emt 0:02:56] [#]} 43. Bb5 $1 {[%emt 0:00:00]} Rb1 {[%emt 0:06:43]} (43... Ra2 44. Ne7) 44. Kg4 {[%emt 0:00:00] White mates.} Rb2 {[%emt 0:11:16]} 45. g3 {[%emt 0:00:00]} Rb1 {[%emt 0:01:19] [#]} 46. Bc6 $1 {[%emt 0:00:00][%mdl 512]} Kg6 {[%emt 0:03:02]} (46... Qf8 47. Bxd5) 47. Ne7+ {[%emt 0:00:00]} Kg7 {[%emt 0:00:28]} 48. Bxd5 {[%emt 0:00:00] Weighted Error Value: White=0.60/Black=1.00} 1-0

[Event "Czech Open-GM 2022"]
[Site "Pardubice"]
[Date "2022.07.24"]
[Round "3.37"]
[White "Hollan, Martin"]
[Black "Flajsman, Pavel"]
[Result "1-0"]
[ECO "C45"]
[WhiteElo "2399"]
[BlackElo "2177"]
[Annotator "TA"]
[PlyCount "109"]
[EventDate "2022.07.22"]
[EventType "swiss"]
[EventCountry "CZE"]
[SourceTitle "playchess.com"]
[Source "ChessBase"]
[SourceQuality "1"]
[TimeControl "40/5400+30:1800+30"]

{[%evp 14,109,0,-34,0,-20,-12,-70,-56,-64,-59,-61,-45,-57,-35,-45,-30,-100,-102,-104,-79,-80,-57,-64,-98,-101,-104,-148,-157,-141,42,50,41,0,0,0,0,20,15,4,3,1,52,30,30,30,23,10,10,10,16,0,6,0,0,0,0,0,0,0,43,50,59,29,129,115,204,153,229,203,230,97,227,217,437,436,409,381,728,502,1509,1469,1447,1375,1239,1000,2368,2371,1339,1199,29980,29981,29982,29983,29984,29984,29983,29983]} 1. e4 {[%emt 0:00:06]} e5 {[%emt 0:00:11]} 2. Nf3 {[%emt 0:00:22]} Nc6 {[%emt 0:00:23]} 3. d4 {[%emt 0:01:36]} exd4 {[%emt 0:00:06]} 4. Nxd4 {[%emt 0:00:06]} Nf6 {[%emt 0:00:23][%cal Bg8f6,Bf6d5,Bd5b6][%mdl 32]} 5. Nxc6 {[%emt 0:00:15]} bxc6 {[%emt 0:00:09]} 6. e5 {[%emt 0:00:09]} Qe7 {[%emt 0:00:32]} 7. Qe2 {[%emt 0:00:07]} Nd5 {[%emt 0:00:07]} 8. h4 {[%emt 0:00:04]} (8. c4 $5 {[%cal Rc4d5]} Nb6 9. b3 $11) 8... a5 {[%emt 0:01:45] C45: Scotch Game.} 9. c4 {[%emt 0:06:38]} (9. g3 $5 {[%cal Rc2c4]}) 9... Nb6 {[%emt 0:00:54]} 10. b3 {[%emt 0:28:03]} (10. Nd2 $11) 10... Qe6 {[%emt 0:03:42] Black is slightly better.} 11. g3 {[%emt 0:03:32]} Bb4+ {[%emt 0:01:17]} 12. Bd2 $1 {[%emt 0:00:14]} O-O {[%emt 0:04:26]} 13. Bh3 {[%emt 0:05:45]} Qe7 {[%emt 0:15:26]} 14. O-O {[%emt 0:04:34] [#]} f6 $146 {[%emt 0:13:46]} ({Predecessor:} 14... d6 15. Bg2 Bb7 16. Re1 Rfe8 17. Nc3 dxe5 18. h5 f5 19. Qd3 Qf7 20. h6 gxh6 {0-1 (28) Ter Sahakyan,S (2632)-Indjic,A (2617) Subotica 2019}) 15. Nc3 {[%emt 0:08:37]} (15. Bc3 $11 {keeps the balance.}) 15... fxe5 $17 {[%emt 0:17:46]} 16. Bg2 {[%emt 0:10:50] Inhibits d5.} Bb7 {[%emt 0:04:44]} (16... d5 {looks sharper.} 17. cxd5 Ba6 18. Qh5 Bxf1 19. Rxf1 Rad8) 17. Rac1 {[%emt 0:05:58]} Rfe8 {[%emt 0:17:41]} 18. Bg5 {[%emt 0:04:26]} Qf7 {[%emt 0:00:14]} 19. Be3 {[%emt 0:03:39]} d5 {[%emt 0:04:56] Inhibits Ne4.} 20. Bxb6 {[%emt 0:01:23]} cxb6 {[%emt 0:00:48]} 21. Na4 {[%emt 0:00:06]} Qc7 $2 {[%emt 0:04:47]} ({Black should play} 21... Rad8 $17 {Strongly threatening ...e4.} 22. Rfd1 e4) 22. cxd5 $14 {[%emt 0:00:39] Black must now prevent Rfd1.} Ba6 {[%emt 0:00:11]} 23. Qh5 {[%emt 0:08:43] Threatens to win with Rfd1.} Bxf1 {[%emt 0:00:22] This bishop pair is nice.} 24. Rxc6 {[%emt 0:00:28]} Qf7 {[%emt 0:01:18]} 25. Qxf7+ {[%emt 0:00:17]} Kxf7 {[%emt 0:00:00]} 26. Bxf1 {[%emt 0:00:13]} Bc5 {[%emt 0:01:59]} 27. Bh3 {[%emt 0:03:55]} Kf8 {[%emt 0:04:53]} (27... Bd4 $11) 28. d6 {[%emt 0:02:00][%cal Bd5d6,Bd6d7][%mdl 32]} (28. Nxb6 Bxb6 29. Rxb6 a4 $11) 28... Bd4 {[%emt 0:00:43]} 29. d7 {[%emt 0:01:13]} Red8 {[%emt 0:00:02]} 30. Nc3 {[%emt 0:00:58]} ({Avoid the trap} 30. Nxb6 $2 Ra6 31. Rc8 Bxb6 $19) 30... Bxc3 {[%emt 0:00:47]} 31. Rxc3 $11 {[%emt 0:00:01][%mdl 4096] Endgame KRR-KRB} Ke7 {[%emt 0:00:13]} 32. Rc6 {[%emt 0:00:21]} Rab8 {[%emt 0:00:54]} 33. Kf1 {[%emt 0:00:30]} Rxd7 {[%emt 0:00:42]} 34. Bxd7 {[%emt 0:00:04]} Kxd7 {[%emt 0:00:01] KR-KR} 35. Rc3 {[%emt 0:00:18]} b5 {[%emt 0:00:52]} 36. Ke2 {[%emt 0:00:12]} Kd6 {[%emt 0:00:29]} 37. Ke3 {[%emt 0:00:45]} Rf8 {[%emt 0:00:42]} 38. f3 {[%emt 0:00:16]} Rb8 {[%emt 0:00:42]} (38... g6 $11) 39. Ke4 $16 {[%emt 0:00:20]} Re8 {[%emt 0:00:35]} (39... Rf8 $16 {keeps fighting.}) 40. a3 {[%emt 0:00:39]} b4 {[%emt 0:00:30] [#]} (40... Re6 $16 41. h5 Rh6) 41. Rd3+ $1 $18 {[%emt 0:06:17]} Kc6 {[%emt 0:18:28] [#]} 42. Rd5 {[%emt 0:16:52]} (42. a4 $1 $18 {is the precise move to win.}) 42... a4 {[%emt 0:03:12]} (42... bxa3 $16 43. Rxa5 Rb8) 43. bxa4 {[%emt 0:00:24]} Ra8 $2 {[%emt 0:06:24]} (43... bxa3 44. Rd3 $16) (43... b3) 44. axb4 {[%emt 0:00:28]} Rxa4 {[%emt 0:00:04]} 45. Kxe5 {[%emt 0:01:41]} ({Not} 45. Rc5+ Kb6 46. Rc4 (46. Kxe5 Rxb4 47. Rd5 g6 $18) 46... Ra7 $18) 45... Rxb4 {[%emt 0:00:04]} (45... Ra3 46. b5+ Kc7) 46. Rd3 {[%emt 0:01:21]} Rb5+ {[%emt 0:04:25]} (46... Rb2 $142 47. Rd6+ Kc7) 47. Ke6 {[%emt 0:00:19]} Rh5 {[%emt 0:00:18]} 48. Rc3+ {[%emt 0:01:22]} Kb5 {[%emt 0:00:05]} 49. Rc7 {[%emt 0:02:04]} g6 {[%emt 0:00:07]} 50. f4 {[%emt 0:00:59]} Kb6 {[%emt 0:00:24]} 51. Rc4 {[%emt 0:01:43]} Kb5 {[%emt 0:00:32]} 52. Re4 {[%emt 0:00:22] White mates.} Kc6 {[%emt 0:00:12]} 53. Re5 {[%emt 0:00:17]} Rh6 {[%emt 0:00:25]} 54. Kf7 {[%emt 0:00:27]} g5 {[%emt 0:00:30]} 55. Re6+ {[%emt 0:00:27] Quite a comeback for White.  Weighted Error Value: White=0.19 (very precise) /Black=0.50} 1-0

[Event "Czech Open-GM 2022"]
[Site "Pardubice"]
[Date "2022.07.24"]
[Round "3.38"]
[White "Finek, Vaclav"]
[Black "Balazs, Balint"]
[Result "1-0"]
[ECO "A04"]
[WhiteElo "2393"]
[BlackElo "2174"]
[Annotator "TA"]
[PlyCount "69"]
[EventDate "2022.07.22"]
[EventType "swiss"]
[EventCountry "CZE"]
[SourceTitle "playchess.com"]
[Source "ChessBase"]
[SourceQuality "1"]
[TimeControl "40/5400+30:1800+30"]

{[%evp 16,69,12,14,20,4,25,3,6,-17,-6,-54,0,0,0,-7,0,-6,7,6,46,-39,-53,-21,0,0,153,151,141,150,129,91,61,83,181,136,162,175,170,101,104,99,209,210,212,206,381,365,397,392,383,383,429,433,641,619]} 1. Nf3 {[%emt 0:00:02]} g6 {[%emt 0:00:17]} 2. d4 {[%emt 0:00:05]} Bg7 {[%emt 0:00:13]} 3. c4 {[%emt 0:00:11]} Nf6 {[%emt 0:02:44][%cal Bg8f6,Bf6d5,Bd5b6,Bb6c4,Bc4b2][%mdl 32]} 4. g3 {[%emt 0:00:09]} O-O {[%emt 0:00:12]} 5. Bg2 {[%emt 0:00:04]} c5 {[%emt 0:00:40]} 6. O-O {[%emt 0:00:23]} d5 {[%emt 0:05:15]} 7. cxd5 {[%emt 0:08:23]} cxd4 {[%emt 0:09:37]} 8. Nxd4 {[%emt 0:00:23][%cal Bf3d4,Bd4b5,Bb5c7][%mdl 32]} Nxd5 {[%emt 0:01:09]} 9. Nc3 {[%emt 0:11:08]} Nb6 {[%emt 0:04:38] D75: Fianchetto Grünfeld: Main Line with 7...c5.} 10. Ndb5 {[%emt 0:05:10]} Nc6 {[%emt 0:02:51]} 11. Qxd8 {[%emt 0:17:24]} Rxd8 {[%emt 0:03:29] [#] The position is equal.} 12. Be3 $146 {[%emt 0:00:13][%cal Ob5a7]} ({Predecessor:} 12. Bf4 Bf5 13. e4 Be6 14. Rfd1 Nc4 15. Rab1 Rxd1+ 16. Nxd1 Rd8 17. b3 N4e5 18. Nc7 {½-½ (55) Luczak,F (2137)-Niekras,D (2331) Warsaw 2019}) 12... Nc4 {[%emt 0:06:27]} 13. Bc5 {[%emt 0:00:08]} (13. Rad1 $11 Bg4 14. h3 Nxe3 15. fxe3) 13... a6 {[%emt 0:06:41]} (13... Bf5 $15) 14. Nc7 $11 {[%emt 0:00:57]} Rb8 {[%emt 0:00:09]} 15. Rac1 {[%emt 0:12:11]} Nxb2 {[%emt 0:07:49]} 16. N3d5 {[%emt 0:01:26]} e6 {[%emt 0:03:58]} 17. Nb6 {[%emt 0:03:35]} Bd7 {[%emt 0:12:58]} 18. Bd6 {[%emt 0:13:38]} ({White should play} 18. Rc2 $14) 18... Nd4 $15 {[%emt 0:07:21]} 19. Rfe1 {[%emt 0:03:11][%cal Oc7a6]} Nf5 {[%emt 0:00:11]} 20. Bf4 {[%emt 0:06:06][%cal Oc7a6] Threatens to win with Nxa6!} ({Much weaker is} 20. Nxa6 Nxd6 21. Nxb8 Be8 $17) 20... Bd4 $2 {[%emt 0:13:35]} (20... Ba4 $11) 21. Nxd7 $16 {[%emt 0:01:40] White is more active.} Rxd7 {[%emt 0:00:06] [#]} 22. Nxe6 $1 {[%emt 0:00:03][%mdl 512]} Re8 {[%emt 0:00:15]} 23. Nxd4 {[%emt 0:02:55]} Nxd4 {[%emt 0:00:07]} 24. Kf1 {[%emt 0:00:21]} Rde7 {[%emt 0:04:54]} (24... Ne6 $16) 25. Be3 {[%emt 0:00:47]} Nf5 {[%emt 0:01:30]} 26. Bg5 {[%emt 0:01:39]} Rd7 {[%emt 0:01:11]} 27. Bf6 {[%emt 0:00:31] A strong pair of Bishops.} ({White should try} 27. Rb1 $18 Nc4 28. Rxb7 Nd2+ 29. Kg1 Rxb7 30. Bxb7) 27... Na4 {[%emt 0:00:27]} 28. Red1 {[%emt 0:01:06]} Nc5 {[%emt 0:01:14] [#]} 29. Rxd7 $1 $18 {[%emt 0:01:26]} Nxd7 {[%emt 0:00:01]} 30. Bb2 {[%emt 0:00:07]} f6 $2 {[%emt 0:03:49]} (30... Nf8 {is a better defense.} 31. Rc7 (31. Bxb7 Rb8 $16) 31... Nd6) 31. Bxb7 {[%emt 0:00:56]} Rb8 {[%emt 0:00:52]} 32. Rc7 {[%emt 0:01:41]} Ne5 {[%emt 0:00:21]} 33. Ba3 {[%emt 0:00:46] Prevents Nd6.} Rd8 {[%emt 0:00:49]} 34. e4 {[%emt 0:00:11]} Nd4 {[%emt 0:00:43]} (34... Nd6 $142 35. Bd5+ (35. Bxa6 Nxe4 36. Rc8 Rxc8 $18) 35... Kh8) 35. Bd5+ {[%emt 0:00:21] Weighted Error Value: White=0.14 (very precise) /Black=0.51} 1-0

[Event "Czech Open-GM 2022"]
[Site "Pardubice"]
[Date "2022.07.24"]
[Round "3.39"]
[White "Winter, Ondrej"]
[Black "Luch, Michal"]
[Result "0-1"]
[ECO "B40"]
[WhiteElo "2168"]
[BlackElo "2375"]
[Annotator "TA"]
[PlyCount "72"]
[EventDate "2022.07.22"]
[EventType "swiss"]
[EventCountry "CZE"]
[SourceTitle "playchess.com"]
[Source "ChessBase"]
[SourceQuality "1"]
[TimeControl "40/5400+30:1800+30"]

{[%evp 25,72,32,27,4,51,37,46,60,59,18,9,16,25,0,0,4,21,0,0,0,41,0,23,0,0,0,0,-47,-47,-80,-80,-80,-80,-80,-80,-80,-81,-88,-81,-265,-246,-255,0,-263,-271,-258,-263,-383,-366]} 1. e4 {[%emt 0:00:04] Paehtz,Elisabeth} c5 {[%emt 0:00:03]} 2. Nf3 {[%emt 0:00:05]} e6 {[%emt 0:00:03]} 3. c3 {[%emt 0:00:14]} Nf6 {[%emt 0:00:08]} 4. e5 {[%emt 0:00:12]} Nd5 {[%emt 0:00:03]} 5. d4 {[%emt 0:00:39]} cxd4 {[%emt 0:00:02]} 6. cxd4 {[%emt 0:00:05]} b6 {[%emt 0:00:03]} 7. Nc3 {[%emt 0:02:40]} Nxc3 {[%emt 0:00:04]} 8. bxc3 {[%emt 0:00:04]} Qc7 {[%emt 0:00:02]} 9. Bd2 {[%emt 0:03:39]} Be7 {[%emt 0:00:20]} 10. Bd3 {[%emt 0:00:50]} Ba6 {[%emt 0:00:02]} 11. Bxa6 {[%emt 0:02:21]} Nxa6 {[%emt 0:00:02]} 12. Qe2 {[%emt 0:05:22]} Qb7 {[%emt 0:01:38]} 13. O-O {[%emt 0:04:28]} O-O {[%emt 0:00:11] [#]} 14. Rac1 $146 {[%emt 0:17:53] B22: Sicilian: 2 c3.} ({Predecessor:} 14. c4 d6 15. exd6 Bxd6 16. Rab1 Nc7 17. Rb3 Ne8 18. Re1 Nf6 19. Bg5 Rfe8 20. Bxf6 gxf6 21. Nd2 f5 {1-0 (53) Paehtz,E (2456)-Dzagnidze,N (2524) Caleta 2021 CBM 202 Extra [Paehtz,Elisabeth]}) 14... b5 {[%emt 0:15:03]} (14... d5 $11) 15. Rb1 $14 {[%emt 0:15:29]} Nc7 {[%emt 0:00:08]} 16. a4 {[%emt 0:02:39][%cal Ra4b5] White is slightly better.} a6 {[%emt 0:04:28]} 17. Bg5 {[%emt 0:08:08]} Bxg5 {[%emt 0:08:26]} 18. Nxg5 {[%emt 0:01:36][%cal Bf3g5,Bg5e4,Be4c5][%mdl 32]} Qd5 {[%emt 0:01:02]} 19. Ne4 {[%emt 0:11:35]} bxa4 {[%emt 0:07:34]} 20. Ra1 {[%emt 0:10:25]} Qc6 {[%emt 0:05:50]} 21. Nc5 {[%emt 0:03:59][%mdl 1024] White has compensation.} Nd5 {[%emt 0:03:18]} 22. Qf3 {[%emt 0:02:14]} Qc8 {[%emt 0:04:10]} 23. Qd3 {[%emt 0:03:18]} (23. c4 $5 {[%cal Rc4d5]} Nb4 24. Rxa4 $14) 23... f6 {[%emt 0:00:40]} 24. f4 {[%emt 0:00:42]} fxe5 {[%emt 0:01:45]} 25. fxe5 {[%emt 0:00:01]} Qc6 {[%emt 0:00:21]} 26. Rxa4 {[%emt 0:02:20]} (26. Rfe1 $11 {deserves consideration.}) 26... Rxf1+ $15 {[%emt 0:01:36]} 27. Kxf1 {[%emt 0:00:02][%cal Ra4a6]} Rf8+ {[%emt 0:04:14]} 28. Kg1 {[%emt 0:00:01]} Nf4 {[%emt 0:00:11][%csl Gf4,LRd3,LRg2][%cal Rc6g2]} 29. Qd2 {[%emt 0:00:07]} Qb5 {[%emt 0:00:39][%cal Of4h3]} 30. Ra1 {[%emt 0:03:30] [#]} Ne2+ $1 {[%emt 0:00:55]} 31. Kh1 {[%emt 0:00:02][%cal Oc5d7]} Nxc3 $1 $40 {[%emt 0:00:07][%mdl 128] ( -> ...Rf1+). Black goes for the king.} 32. h3 $2 {[%emt 0:00:42]} (32. Qe1 $17 {was necessary.}) 32... Rf1+ $19 {[%emt 0:14:36]} 33. Rxf1 {[%emt 0:00:01]} Qxf1+ {[%emt 0:00:03]} 34. Kh2 {[%emt 0:00:02]} Ne2 {[%emt 0:00:08][%csl Ge2][%cal Rf1g1] [#]} 35. Qe3 {[%emt 0:00:32] Inhibits Qg1+.} a5 {[%emt 0:00:01]} 36. h4 {[%emt 0:01:58]} (36. Na4 {is the only way for White.}) 36... Qe1 {[%emt 0:06:58] Weighted Error Value: White=0.30/Black=0.06 (flawless)} 0-1